bitfinex/quotes_ETHUSD_20250519
["timestamp","ask_amount","ask_price","bid_price","bid_amount"]
[1747682219335,4.0089012,2494.5,2494.4,12.0981927]
[1747682220634,4.00873696,2494.6,2494.4,17.6932697]
[1747682220834,4.00873696,2494.6,2494.5,11.97454]
[1747682221145,4.00873696,2494.6,2494.5,8.13625206]
[1747682222073,4.00873696,2494.6,2494.5,0.13625206]
[1747682227403,4.00873696,2494.6,2494.5,8.26425206]
[1747682228680,4.00873696,2494.6,2494.5,0.13625206]
[1747682228893,4.83293696,2494.6,2494.5,8.26425206]
[1747682230859,4.00873696,2494.6,2494.5,8.26425206]
[1747682232299,6.18466483,2494.6,2494.5,0.13625206]
[1747682232588,18.34617885,2494.6,2494.5,0.13625206]
[1747682233890,18.81915706,2494.6,2494.5,0.13625206]
[1747682234695,18.81915706,2494.6,2494.5,0.03625206]
[1747682235797,14.65764304,2494.6,2494.5,0.03625206]
[1747682235998,18.81915706,2494.6,2494.5,0.03625206]
[1747682236350,18.34617885,2494.6,2494.5,0.03625206]
[1747682236567,18.34617885,2494.6,2493.3,17.307]
[1747682236568,4.01058795,2493.4,2493.3,17.307]
[1747682236801,4.01058795,2493.4,2493.3,25.436]
[1747682236965,4.01058795,2493.4,2493.3,27.9796]
[1747682237163,4.01058795,2493.4,2493.3,25.436]
[1747682237396,4.01058795,2493.4,2493.3,17.307]
[1747682237591,4.01058795,2493.4,2493.3,25.436]
[1747682242494,0.8231,2494.1,2493.3,33.881156]
[1747682242660,4.83210418,2494.4,2493.4,4.25991508]
[1747682242857,4.00950661,2494.1,2493.6,0.8317]
[1747682243063,0.47859314,2494.5,2493.9,0.8317]
[1747682243292,4.00904782,2494.4,2494.1,8.0]
[1747682243475,4.00904782,2494.4,2494.2,18.925]
[1747682243680,4.00898011,2494.4,2494.3,0.8317]
[1747682244300,4.00898011,2494.4,2494.3,8.452513]
[1747682245164,4.00886554,2494.5,2494.3,8.452513]
[1747682245361,4.00886554,2494.5,2494.4,16.16579]
[1747682245567,4.00867599,2494.6,2494.4,20.05856902]
[1747682245801,4.00867599,2494.6,2494.5,20.800639]
[1747682246105,4.00867599,2494.6,2494.5,13.919663]
[1747682246468,4.00867599,2494.6,2494.5,11.569663]
[1747682246668,4.00867599,2494.6,2494.5,12.56926303]
[1747682248472,4.00867599,2494.6,2494.3,0.8317]
[1747682248473,4.00898011,2494.4,2494.3,8.8317]
[1747682248692,4.00898011,2494.4,2494.3,16.9607]
[1747682248873,4.00898011,2494.4,2494.3,11.141439]
[1747682250706,4.00898011,2494.4,2494.3,11.145439]
[1747682250908,4.00898011,2494.4,2494.3,8.9607]
[1747682251211,4.00914084,2494.3,2494.2,17.312]
[1747682251515,4.77824084,2494.3,2494.2,25.436]
[1747682251892,5.32824084,2494.3,2494.2,25.436]
[1747682252090,6.78310963,2494.3,2494.2,17.312]
[1747682252677,6.78310963,2494.3,2494.2,25.436]
[1747682253776,6.23310963,2494.3,2494.2,25.436]
[1747682254574,4.77824084,2494.3,2494.2,25.436]
[1747682255925,4.00914084,2494.3,2494.2,25.436]
[1747682257306,4.00914084,2494.3,2494.2,55.377108]
[1747682257511,4.00914084,2494.3,2494.2,29.612613]
[1747682257705,4.00914084,2494.3,2494.2,26.2563]
[1747682258624,4.00914084,2494.3,2494.2,28.299963]
[1747682260223,4.00899319,2494.4,2494.2,31.1299593]
[1747682260524,4.00873687,2494.6,2494.4,8.0]
[1747682260682,4.00873687,2494.6,2494.3,8.0]
[1747682261629,0.1,2494.9,2494.3,8.0]
[1747682261931,4.00840131,2494.8,2494.4,3.70862963]
[1747682262297,0.1,2494.9,2494.6,0.7568]
[1747682262501,0.1,2494.9,2494.7,8.124]
[1747682264123,0.1,2494.9,2494.7,8.41932927]
[1747682264737,0.1,2494.9,2494.8,40.37563734]
[1747682264971,0.1,2494.9,2494.8,41.72883004]
[1747682265139,0.1,2494.9,2494.8,40.99909804]
[1747682265305,0.1,2494.9,2494.8,16.86333004]
[1747682265637,0.1,2494.9,2494.8,54.77158904]
[1747682266697,0.1,2494.9,2494.8,26.2167077]
[1747682266898,0.1,2494.9,2494.8,20.4169657]
[1747682267332,4.10817668,2494.9,2494.8,11.220957]
[1747682267511,4.10817668,2494.9,2494.8,11.464557]
[1747682267716,4.10817668,2494.9,2494.8,16.123]
[1747682267918,4.00833734,2494.8,2494.7,0.29532927]
[1747682268131,4.10822886,2494.9,2494.7,10.696952]
[1747682268327,4.10822886,2494.9,2494.8,3.65301]
[1747682268508,0.1,2494.9,2494.8,3.65301]
[1747682269335,0.1,2494.9,2494.8,12.830611]
[1747682270133,0.1,2494.9,2494.8,17.59574834]
[1747682275555,4.48412955,2496.6,2495.5,4.00712699]
[1747682275856,4.48412955,2496.6,2495.7,8.0]
[1747682275857,4.10658271,2495.9,2495.7,8.0]
[1747682276056,4.10658271,2495.9,2495.7,3.81879223]
[1747682276057,4.0067313,2495.8,2495.7,3.81879223]
[1747682276233,4.0067313,2495.8,2495.6,25.424]
[1747682276234,4.00689185,2495.7,2495.6,17.303]
[1747682276431,4.00689185,2495.7,2495.6,25.424]
[1747682278166,4.76339185,2495.7,2495.6,25.424]
[1747682278458,4.76339185,2495.7,2495.6,25.423]
[1747682280155,4.00689185,2495.7,2495.6,25.423]
[1747682281447,4.00689185,2495.7,2495.6,17.303]
[1747682281653,4.89986417,2495.7,2495.6,17.303]
[1747682281858,6.26596417,2495.7,2495.6,25.415]
[1747682282267,5.71596417,2495.7,2495.6,25.415]
[1747682282886,4.82299185,2495.7,2495.6,25.415]
[1747682284441,4.00689185,2495.7,2495.6,25.415]
[1747682287394,4.0067313,2495.8,2495.6,26.18]
[1747682287675,4.0067313,2495.8,2495.7,2.6504]
[1747682288045,0.1,2495.9,2495.7,10.6504]
[1747682288380,0.1,2496.9,2495.7,10.6504]
[1747682288381,0.1,2496.9,2496.4,0.8048]
[1747682288542,4.00557831,2496.6,2496.5,25.411]
[1747682288744,4.0054474,2496.6,2496.5,28.9534]
[1747682288944,4.0054474,2496.6,2496.5,25.411]
[1747682289179,4.00538134,2496.7,2496.5,25.411]
[1747682289554,4.4837782,2496.8,2496.5,27.612295]
[1747682289759,0.47859314,2496.8,2496.5,27.91054714]
[1747682290280,0.1,2496.9,2496.5,19.79954714]
[1747682290483,4.0054474,2496.6,2496.5,17.3]
[1747682290987,4.0054474,2496.6,2496.5,25.41]
[1747682291287,4.0054474,2496.6,2496.5,17.3]
[1747682291485,4.0054474,2496.6,2496.5,25.41]
[1747682291781,0.9067,2496.9,2496.5,25.41]
[1747682291951,4.00537307,2496.7,2496.5,25.41]
[1747682292768,4.00516322,2496.8,2496.5,27.98041406]
[1747682292958,0.1,2496.9,2496.6,0.7653]
[1747682293370,4.10496834,2496.9,2496.7,18.208569]
[1747682293563,0.1,2496.9,2496.8,2.787358]
[1747682293748,0.1,2496.9,2496.7,15.82758]
[1747682294081,0.1,2496.9,2496.8,8.0]
[1747682294260,0.1,2496.9,2496.8,20.129303]
[1747682294456,0.1,2496.9,2496.8,24.91782956]
[1747682294706,0.1,2496.9,2496.8,30.694293]
[1747682295016,0.1,2496.9,2496.8,24.238813]
[1747682295147,0.1,2496.9,2496.8,23.07083436]
[1747682296157,0.1,2496.9,2496.8,27.07596092]
[1747682296771,0.1,2496.9,2496.8,24.25585892]
[1747682296966,0.1,2496.9,2496.8,71.70563592]
[1747682297178,0.1,2496.9,2496.8,65.40882992]
[1747682298906,0.1,2496.9,2496.8,57.33222736]
[1747682299063,4.00367063,2497.8,2497.4,8.7618]
[1747682299266,4.00384368,2497.6,2497.5,25.292]
[1747682299465,4.00384368,2497.6,2497.5,25.4]
[1747682299662,0.7773,2497.8,2497.5,25.4]
[1747682299877,4.0035231,2497.8,2497.5,27.94]
[1747682300066,4.00384368,2497.6,2497.5,17.292]
[1747682300262,4.00384368,2497.6,2497.5,25.4]
[1747682300870,4.0035231,2497.8,2497.5,29.101097]
[1747682301089,0.1,2497.9,2497.6,0.7618]
[1747682301262,0.1,2497.9,2497.6,8.7618]
[1747682301588,4.10341704,2497.9,2497.7,3.41618]
[1747682302102,4.0035231,2497.8,2497.7,8.0]
[1747682302257,4.0035231,2497.8,2497.7,16.107]
[1747682302585,4.0035231,2497.8,2497.7,8.30039608]
[1747682302798,0.1,2497.9,2497.7,16.40739608]
[1747682302968,0.1,2497.9,2497.7,8.40739608]
[1747682303290,0.1,2497.9,2497.8,42.51551171]
[1747682303593,0.8232,2498.7,2497.8,31.16195261]
[1747682303808,4.00305779,2498.1,2497.8,10.42363961]
[1747682304099,0.8232,2498.7,2497.8,10.42363961]
[1747682304100,4.00267061,2498.4,2497.9,14.19374614]
[1747682304296,0.1,2498.9,2497.9,14.19374614]
[1747682304297,0.1,2498.9,2498.2,0.7829]
[1747682304487,4.00256163,2498.4,2498.3,8.105]
[1747682304798,4.00256163,2498.4,2498.3,25.392]
[1747682306590,4.00244763,2498.5,2498.4,8.0]
[1747682306808,4.00213244,2498.7,2498.4,8.0]
[1747682307103,4.00201873,2498.8,2498.5,1.73181118]
[1747682307611,4.00201873,2498.8,2498.7,8.8258]
[1747682307612,4.00192092,2498.8,2498.7,8.8258]
[1747682307818,4.00240144,2498.5,2498.4,8.0]
[1747682308108,4.00240144,2498.5,2498.4,16.104]
[1747682308315,4.00256163,2498.4,2498.3,17.287]
[1747682308478,4.00256163,2498.4,2498.3,25.391]
[1747682309190,4.00256163,2498.4,2498.3,33.391]
[1747682310718,0.7966,2498.8,2498.4,8.0]
[1747682310891,4.00254763,2498.5,2498.4,8.0]
[1747682311083,4.00254763,2498.5,2498.4,20.335301]
[1747682311586,4.00254763,2498.5,2498.4,2.91012]
[1747682311785,4.00256163,2498.4,2498.3,25.287]
[1747682312117,4.00256163,2498.4,2498.3,33.384]
[1747682312282,4.00256163,2498.4,2498.3,25.287]
[1747682312483,5.31906163,2498.4,2498.3,25.384]
[1747682312799,4.00384368,2497.6,2497.5,17.284]
[1747682313783,4.00384368,2497.6,2497.5,17.61824729]
[1747682315195,4.00384368,2497.6,2497.5,25.71524729]
[1747682317318,0.8046,2498.1,2497.5,33.71524729]
[1747682317517,4.00384368,2497.6,2497.5,33.71524729]
[1747682317923,4.00377188,2497.7,2497.6,8.0]
[1747682319129,4.80768533,2498.1,2497.6,8.0]
[1747682319130,4.00337389,2497.9,2497.6,8.0]
[1747682319297,4.00296359,2498.2,2497.7,4.00357091]
[1747682319497,4.00296359,2498.2,2497.9,0.773]
[1747682319741,4.00311059,2498.1,2498.0,16.097]
[1747682319898,4.00294825,2498.2,2498.1,8.0]
[1747682320091,4.00294825,2498.2,2498.0,8.097]
[1747682320728,4.00304231,2498.1,2498.0,8.097]
[1747682320931,4.00296419,2498.2,2498.1,8.0]
[1747682321161,4.00279583,2498.3,2498.1,8.0]
[1747682321306,0.8254,2498.7,2498.1,9.687]
[1747682321629,4.00232221,2498.6,2498.2,8.0]
[1747682322128,4.00211401,2498.7,2498.3,0.7746]
[1747682322697,4.00225381,2498.6,2498.3,0.7746]
[1747682322937,0.1,2498.9,2498.6,4.00224125]
[1747682323240,0.1,2498.9,2498.8,8.0]
[1747682323899,4.10176077,2498.9,2498.8,8.0]
[1747682324437,0.1,2498.9,2498.8,8.0]
[1747682325018,4.10176077,2498.9,2498.8,8.0]
[1747682325212,0.1,2498.9,2498.8,24.726085]
[1747682325417,0.1,2498.9,2498.8,18.268828]
[1747682326432,4.10176077,2498.9,2498.8,18.268828]
[1747682326637,0.1,2498.9,2498.8,18.56540935]
[1747682327003,0.1,2498.9,2498.8,25.80248635]
[1747682327202,4.10176077,2498.9,2498.8,25.80248635]
[1747682327403,0.1,2498.9,2498.8,25.80248635]
[1747682328046,4.10176077,2498.9,2498.8,23.33971235]
[1747682329048,4.10176077,2498.9,2498.8,23.33871235]
[1747682329546,4.10176077,2498.9,2498.8,8.095]
[1747682329707,4.10176077,2498.9,2498.7,17.282]
[1747682329708,4.00192092,2498.8,2498.7,17.282]
[1747682329909,4.55192092,2498.8,2498.7,25.377]
[1747682330610,4.55192092,2498.8,2498.7,17.282]
[1747682330811,6.64455775,2498.8,2498.7,17.282]
[1747682334446,6.64455775,2498.8,2497.9,8.0]
[1747682334447,4.00320256,2498.0,2497.9,25.279]
[1747682334645,4.00320256,2498.0,2497.9,33.374]
[1747682334849,4.00320256,2498.0,2497.9,25.374]
[1747682336942,4.00320256,2498.0,2497.9,35.9114]
[1747682338119,4.00320256,2498.0,2497.9,35.98374498]
[1747682338813,4.00320256,2498.0,2497.9,36.77624498]
[1747682339018,4.00313559,2498.1,2498.0,8.0]
[1747682339254,0.8193,2498.6,2498.0,8.0]
[1747682339450,0.8193,2499.2,2498.3,0.7925]
[1747682339652,4.00224125,2498.6,2498.5,8.0]
[1747682339949,4.00224125,2498.6,2498.5,12.899896]
[1747682340119,4.0021149,2498.7,2498.5,10.53548266]
[1747682340446,0.1,2498.9,2498.8,0.7925]
[1747682340611,0.1,2498.9,2498.8,45.3459717]
[1747682340816,4.10176077,2498.9,2498.8,41.09212494]
[1747682341824,4.0005979,2499.7,2499.2,0.7925]
[1747682342128,1.45742419,2500.4,2499.4,8.0]
[1747682342329,4.0006401,2499.6,2499.5,17.91114743]
[1747682342519,4.0006401,2499.6,2499.5,27.37817543]
[1747682342714,4.0006401,2499.6,2499.5,8.0]
[1747682343055,4.00176077,2498.9,2498.8,17.40944224]
[1747682343214,4.82106077,2498.9,2498.8,25.50144224]
[1747682344157,0.8193,2499.3,2498.9,8.0]
[1747682344455,4.00151979,2499.1,2498.9,8.0]
[1747682344630,4.00151979,2499.1,2499.0,11.35014422]
[1747682345354,4.00115353,2499.3,2499.0,11.35014422]
[1747682345355,4.00126682,2499.3,2499.0,3.35014422]
[1747682345518,4.00144051,2499.1,2499.0,15.41177922]
[1747682345726,4.00144051,2499.1,2499.0,25.15366922]
[1747682345918,4.00144051,2499.1,2499.0,24.82005922]
[1747682346260,4.00136039,2499.2,2499.0,24.82005922]
[1747682346446,4.00136039,2499.2,2499.1,9.57728992]
[1747682346760,4.00098213,2499.4,2499.1,9.57728992]
[1747682346956,4.87728528,2499.9,2499.2,0.04001081]
[1747682347113,4.87728528,2499.9,2499.0,11.35014422]
[1747682347114,4.0012804,2499.2,2499.0,11.35014422]
[1747682347319,4.00144051,2499.1,2499.0,11.35014422]
[1747682347635,4.00176077,2498.9,2498.8,17.40944224]
[1747682347837,5.32876077,2498.9,2498.8,0.12844224]
[1747682349053,4.77876077,2498.9,2498.8,0.12844224]
[1747682351399,4.77876077,2498.9,2498.8,8.22044224]
[1747682353545,4.77876077,2498.9,2498.8,0.12844224]
[1747682353870,6.05694355,2498.9,2498.8,0.12844224]
[1747682354175,6.60694355,2498.9,2498.8,0.12844224]
[1747682354369,6.60694355,2498.9,2498.8,8.22044224]
[1747682354774,5.32876077,2498.9,2498.8,8.22044224]
[1747682355582,5.32876077,2498.9,2498.8,0.12844224]
[1747682355855,5.32876077,2498.9,2498.8,8.22144224]
[1747682356069,4.00176077,2498.9,2498.8,8.22144224]
[1747682356363,4.00167928,2499.0,2498.8,26.26435224]
[1747682356528,4.00167928,2499.0,2498.9,10.62643522]
[1747682357042,4.00150787,2499.1,2498.9,13.41902422]
[1747682357249,4.00150787,2499.1,2498.9,10.69524533]
[1747682357562,4.00094744,2499.5,2499.1,8.0]
[1747682357767,4.00070478,2499.6,2499.2,20.440714]
[1747682358059,4.00080016,2499.5,2499.4,8.0]
[1747682358225,4.00080016,2499.5,2499.4,10.45255]
[1747682358425,4.00080016,2499.5,2499.4,8.06386486]
[1747682358633,4.00071714,2499.6,2499.4,16.53376175]
[1747682358834,4.00071714,2499.6,2499.4,11.72362275]
[1747682359427,4.00071714,2499.6,2499.5,0.797]
[1747682359730,4.00071714,2499.6,2499.4,11.72362275]
[1747682359731,4.00080016,2499.5,2499.4,11.72362275]
[1747682360033,4.00053669,2499.7,2499.4,31.43775175]
[1747682360237,4.0006401,2499.6,2499.5,11.22347518]
[1747682361061,4.00051049,2499.7,2499.6,8.0]
[1747682361062,4.00056909,2499.7,2499.6,8.0]
[1747682361756,4.00056909,2499.7,2499.5,11.29578092]
[1747682362058,4.00056909,2499.7,2499.6,0.07230329]
[1747682363875,4.00056909,2499.7,2499.6,8.16330329]
[1747682366363,4.00056909,2499.7,2499.6,8.16230329]
[1747682366660,4.00056909,2499.7,2499.6,0.07230329]
[1747682366863,4.00056909,2499.7,2499.6,8.16230329]
[1747682367735,4.00056909,2499.7,2499.6,0.07230329]
[1747682368045,4.00056909,2499.7,2499.6,8.16230329]
[1747682369251,4.79656909,2499.7,2499.6,8.16230329]
[1747682369563,4.79656909,2499.7,2499.6,0.07230329]
[1747682369772,5.68626373,2499.7,2499.6,8.16230329]
[1747682371146,4.79656909,2499.7,2499.6,8.16230329]
[1747682372399,4.00056909,2499.7,2499.6,8.16230329]
[1747682373413,4.00048005,2499.7,2499.6,8.16230329]
[1747682374064,4.00048005,2499.7,2499.6,8.16430329]
[1747682374396,4.10020226,2499.9,2499.6,11.24866429]
[1747682374601,4.00048005,2499.7,2499.6,8.16430329]
[1747682374901,4.00048005,2499.7,2499.6,10.36406529]
[1747682375099,4.00048005,2499.7,2499.6,8.16430329]
[1747682375705,4.00048005,2499.7,2499.6,0.07230329]
[1747682376000,4.00048005,2499.7,2499.6,8.16430329]
[1747682376307,4.00048005,2499.7,2499.6,0.07230329]
[1747682376483,5.58546006,2499.7,2499.6,8.16330329]
[1747682376683,4.77538005,2499.7,2499.6,8.16330329]
[1747682379225,4.00048005,2499.7,2499.6,0.07230329]
[1747682379423,4.00048005,2499.7,2499.6,8.16330329]
[1747682385843,4.00048005,2499.7,2499.6,8.96300329]
[1747682386006,4.00048005,2499.7,2499.6,11.39352929]
[1747682386211,4.00048005,2499.7,2499.6,13.07028222]
[1747682386544,0.1,2499.9,2499.6,17.07086324]
[1747682386732,0.47859314,2500.4,2499.6,17.07086324]
[1747682386733,4.09857507,2500.9,2500.0,3.99996199]
[1747682387038,0.1,2500.9,2500.5,3.99916878]
[1747682387244,0.1,2500.9,2500.6,38.34606948]
[1747682387451,1.27125246,2501.3,2500.9,4.79820943]
[1747682387621,3.99840063,2501.0,2500.9,6.7967]
[1747682387801,3.99833459,2501.1,2501.0,8.092]
[1747682388005,3.99833459,2501.1,2501.0,14.082822]
[1747682388228,3.99765167,2501.5,2501.0,14.082822]
[1747682388229,3.99756596,2501.6,2501.0,14.080822]
[1747682388426,3.99824077,2501.1,2501.0,8.09]
[1747682388617,3.99824077,2501.1,2501.0,12.185379]
[1747682388818,3.99817514,2501.2,2501.0,12.185379]
[1747682389019,3.99741096,2501.7,2501.0,9.3885079]
[1747682389253,3.99817387,2501.2,2501.0,9.3885079]
[1747682389430,3.99816037,2501.2,2501.0,9.3885079]
[1747682389616,0.8677,2501.9,2501.0,9.3885079]
[1747682389617,4.09708825,2501.9,2501.1,50.829073]
[1747682389803,3.99763623,2501.5,2501.2,4.0981927]
[1747682390001,3.99763623,2501.5,2501.1,8.8809]
[1747682390317,3.9975353,2501.6,2501.2,41.143401]
[1747682390655,3.99745195,2501.6,2501.2,0.7909]
[1747682391015,3.99735634,2501.7,2501.3,20.682944]
[1747682391250,3.99735634,2501.7,2501.5,0.7909]
[1747682391451,3.99735634,2501.7,2501.6,25.352]
[1747682392355,4.09701748,2501.9,2501.6,25.352]
[1747682392535,3.99712207,2501.8,2501.7,4.198532]
[1747682392734,3.99712207,2501.8,2501.7,3.451132]
[1747682393356,3.99600399,2502.5,2501.7,6.4105352]
[1747682393542,0.8142,2502.6,2501.7,6.4105352]
[1747682393543,3.99697618,2501.9,2501.7,2.9594032]
[1747682393856,3.9969623,2501.9,2501.8,12.878676]
[1747682394623,3.9969623,2501.9,2501.8,11.11594]
[1747682394823,3.9969623,2501.9,2501.8,7.204686]
[1747682395018,3.99712207,2501.8,2501.6,17.264]
[1747682395223,3.99712207,2501.8,2501.6,17.32210824]
[1747682395224,3.99728184,2501.7,2501.6,17.32210824]
[1747682395432,3.99728184,2501.7,2501.6,25.40910824]
[1747682396526,3.99728184,2501.7,2501.6,17.32210824]
[1747682396726,3.99728184,2501.7,2501.6,25.40910824]
[1747682398452,3.9972121,2501.8,2501.7,0.7598]
[1747682399756,3.99728184,2501.7,2501.6,17.32210824]
[1747682399962,3.99728184,2501.7,2501.6,25.40810824]
[1747682400260,3.99728184,2501.7,2501.6,41.07764524]
[1747682400860,3.99728184,2501.7,2501.6,25.40810824]
[1747682401576,3.99728184,2501.7,2501.6,17.32210824]
[1747682401877,6.09813123,2501.7,2501.6,17.32210824]
[1747682402025,14.09813123,2501.7,2501.6,0.05810824]
[1747682404254,14.09813123,2501.7,2500.8,17.258]
[1747682404255,4.79126051,2500.9,2500.8,17.258]
[1747682404592,5.6702297,2500.9,2500.8,25.342]
[1747682404786,4.79126051,2500.9,2500.8,25.342]
[1747682405285,3.99856051,2500.9,2500.8,25.342]
[1747682406104,3.99786615,2501.4,2500.8,28.0734]
[1747682406305,3.99616582,2502.4,2501.1,3.99824077]
[1747682406306,3.99752253,2501.6,2501.1,3.99824077]
[1747682406507,3.99756389,2501.6,2501.2,1.69384427]
[1747682406809,4.79690781,2502.0,2501.3,8.085]
[1747682406810,3.99776125,2501.4,2501.3,8.085]
[1747682406988,3.99792108,2501.3,2501.2,1.69384427]
[1747682407188,3.9969623,2501.9,2501.2,20.58217927]
[1747682407389,3.99771857,2501.5,2501.3,2.65751793]
[1747682407593,3.99771857,2501.5,2501.4,14.33926]
[1747682408099,3.99771857,2501.5,2501.4,14.43907017]
[1747682408285,3.99771857,2501.5,2501.4,2.34792717]
[1747682409311,3.99664672,2502.1,2501.6,3.99736344]
[1747682409312,3.99671324,2502.1,2501.6,3.99736344]
[1747682409476,3.99687635,2502.0,2501.7,8.084]
[1747682409677,3.99687635,2502.0,2501.9,0.7643]
[1747682410384,3.99592468,2502.6,2501.9,17.00121]
[1747682410592,3.99600399,2502.5,2501.9,0.7643]
[1747682410776,3.99664282,2502.1,2502.0,1.80243]
[1747682410971,3.99664282,2502.1,2501.8,17.26]
[1747682410972,3.99680255,2502.0,2501.8,17.26]
[1747682411176,3.9969623,2501.9,2501.8,17.26]
[1747682411379,3.99687968,2502.0,2501.9,0.7762]
[1747682411685,3.99687968,2502.0,2501.9,22.775242]
[1747682411891,3.99673218,2502.1,2501.9,25.8865847]
[1747682412090,3.99673218,2502.1,2502.0,20.038492]
[1747682412516,0.783,2502.9,2502.1,0.7579]
[1747682412689,3.99612962,2502.5,2502.1,0.7579]
[1747682412876,3.99488654,2503.2,2502.7,0.7579]
[1747682413081,3.99488654,2503.2,2502.8,25.341]
[1747682413082,3.99536537,2502.9,2502.8,25.341]
[1747682413276,3.99536537,2502.9,2502.8,17.258]
[1747682413503,4.7944255,2502.9,2502.8,25.341]
[1747682414483,3.99600399,2502.5,2502.4,17.258]
[1747682414685,3.99600399,2502.5,2502.4,25.341]
[1747682415022,4.78020399,2502.5,2502.4,25.341]
[1747682415203,6.05737729,2502.5,2502.4,25.341]
[1747682415380,4.78020399,2502.5,2502.4,25.341]
[1747682415586,3.99600399,2502.5,2502.4,25.341]
[1747682416054,1.50118491,2506.2,2502.8,0.1]
[1747682416322,1.50118491,2506.2,2502.5,12.87603983]
[1747682416323,0.7553,2506.4,2504.5,0.55]
[1747682416521,0.7553,2506.4,2505.0,2.406]
[1747682416750,0.7553,2506.4,2504.9,14.5]
[1747682416901,2.44737366,2506.4,2504.6,26.046]
[1747682417227,3.99027312,2506.1,2505.0,3.99188606]
[1747682417380,0.7553,2506.4,2504.7,16.79]
[1747682417381,3.99119671,2505.6,2504.7,14.5]
[1747682417583,4.74591871,2505.9,2504.9,8.0]
[1747682417801,0.39902731,2506.0,2504.9,8.0]
[1747682417999,0.39902731,2506.0,2505.1,8.0]
[1747682418217,1.93172302,2506.3,2505.3,8.0]
[1747682418432,1.93172302,2506.3,2505.4,0.7939]
[1747682418599,1.93172302,2506.3,2505.5,8.0]
[1747682418802,1.93172302,2506.3,2505.7,8.0]
[1747682418999,1.93172302,2506.3,2505.9,3.99046736]
[1747682419195,1.93172302,2506.3,2506.0,27.5623]
[1747682419420,1.93172302,2506.3,2506.1,23.657]
[1747682419720,1.93172302,2506.3,2506.0,8.786]
[1747682419721,3.99026375,2506.1,2506.0,0.37131207]
[1747682419920,4.58246243,2506.1,2506.0,0.37131207]
[1747682420127,5.37686243,2506.1,2506.0,0.37131207]
[1747682421198,3.99074147,2505.8,2505.7,0.46988632]
[1747682422588,3.99090074,2505.7,2505.6,26.035]
[1747682422823,3.99137862,2505.4,2505.3,8.783]
[1747682423132,0.55,2505.8,2504.8,17.243]
[1747682423133,3.99217533,2504.9,2504.8,17.243]
[1747682423425,3.99233471,2504.8,2504.7,0.46988632]
[1747682423593,5.18998814,2504.8,2504.7,0.80317278]
[1747682424515,3.9919566,2505.1,2504.7,3.60043278]
[1747682424714,3.9919566,2505.1,2504.8,0.33327315]
[1747682424895,1.15177415,2505.7,2504.9,9.072]
[1747682425096,3.99185661,2505.1,2505.0,17.57424655]
[1747682425720,3.99185661,2505.1,2505.0,26.64624655]
[1747682425908,4.79021331,2505.1,2505.0,17.57424655]
[1747682426226,4.79021331,2505.1,2505.0,26.64624655]
[1747682426426,4.79021331,2505.1,2505.0,17.57424655]
[1747682426615,4.79021331,2505.1,2505.0,0.33324655]
[1747682426820,6.09291331,2505.1,2505.0,0.33324655]
[1747682427020,0.7983567,2505.1,2504.1,0.46988632]
[1747682427194,4.74379303,2505.6,2504.2,15.8456]
[1747682427195,3.99121931,2505.5,2504.2,15.8456]
[1747682427527,3.99270944,2504.6,2504.3,9.40533969]
[1747682427698,3.99281293,2504.5,2504.4,25.22780438]
[1747682427910,3.9926067,2504.7,2504.4,0.33332638]
[1747682428111,4.54121931,2505.5,2504.5,9.072]
[1747682428316,3.99249411,2504.7,2504.6,9.072]
[1747682428517,3.99249411,2504.7,2504.6,9.40529977]
[1747682429053,3.99249411,2504.7,2504.6,15.74968377]
[1747682429211,3.99249411,2504.7,2504.6,6.67768377]
[1747682429551,3.99249411,2504.7,2504.6,13.49368377]
[1747682429747,3.99249411,2504.7,2504.6,0.33329977]
[1747682430146,3.99249411,2504.7,2504.6,9.40529977]
[1747682430661,3.99249411,2504.7,2504.6,9.40429977]
[1747682430873,3.99329127,2504.2,2504.0,17.241]
[1747682431159,3.99345074,2504.1,2504.0,17.241]
[1747682431825,3.99345074,2504.1,2504.0,26.312]
[1747682432073,3.99345074,2504.1,2504.0,26.64537963]
[1747682432246,4.87328494,2504.1,2504.0,17.57437963]
[1747682432413,4.87328494,2504.1,2504.0,26.64537963]
[1747682432614,3.99345074,2504.1,2504.0,26.64537963]
[1747682433645,3.99345074,2504.1,2504.0,26.312]
[1747682433848,3.9934349,2504.2,2504.0,26.312]
[1747682434046,3.99345074,2504.1,2504.0,17.241]
[1747682434234,3.99345074,2504.1,2504.0,32.0719]
[1747682435855,3.99345074,2504.1,2504.0,32.44295294]
[1747682437051,3.99345074,2504.1,2504.0,35.68724823]
[1747682437257,3.99217533,2504.9,2504.0,36.46004823]
[1747682437450,0.7527,2505.0,2504.0,36.46004823]
[1747682437451,3.99310836,2504.4,2504.1,0.12467515]
[1747682437643,3.99310836,2504.4,2504.2,10.340367]
[1747682437843,3.99305856,2504.4,2504.2,10.340367]
[1747682438056,3.99305856,2504.4,2504.3,12.228292]
[1747682438250,3.99305856,2504.4,2504.3,3.109976]
[1747682438449,3.99305856,2504.4,2504.3,2.48573294]
[1747682438967,3.99305856,2504.4,2504.3,2.61040799]
[1747682439466,3.99305856,2504.4,2504.3,9.56672799]
[1747682439665,3.99305856,2504.4,2504.3,9.44205294]
[1747682439666,4.7916462,2504.4,2504.3,9.44205294]
[1747682439875,4.7916462,2504.4,2504.3,9.071]
[1747682440647,3.99345074,2504.1,2504.0,17.241]
[1747682440849,3.99345074,2504.1,2504.0,26.312]
[1747682441064,3.99345074,2504.1,2504.0,17.241]
[1747682441266,3.99345074,2504.1,2504.0,26.68502009]
[1747682441567,3.99345074,2504.1,2504.0,26.80971509]
[1747682442134,3.99345074,2504.1,2504.0,26.68502009]
[1747682443088,0.7666,2505.1,2504.0,30.19341073]
[1747682443248,3.99201596,2505.0,2504.0,30.31809204]
[1747682443571,0.7666,2505.1,2504.0,30.31809204]
[1747682443572,3.9917499,2505.2,2504.1,42.57321817]
[1747682443776,0.7666,2505.5,2504.2,15.056]
[1747682443977,3.99297236,2504.4,2504.3,0.12468131]
[1747682444136,3.99201596,2505.0,2504.3,22.43586531]
[1747682444336,3.99282805,2504.5,2504.3,13.20036985]
[1747682444542,3.99256032,2504.7,2504.5,0.46988632]